{"text_format":"1","workbook":"xlsx","n_sheets":6,"sheets":["Anlatım","Beceri Edinim Formu","Ayarlamalar","DönemSonu","SeneSonu","AlanBecerileri"],"not_rendered":{"charts":0,"images":12,"macros":1,"external_links":1,"defined_names":0,"comments":0,"pivot_tables":0},"unopened":[],"bounds":{"document_bytes":16777216,"sheet_cells":100000,"rows_first":2000,"rows_last":500,"rows_between":2000,"halvings":0,"cell_chars":16384,"cell_head_chars":4096},"cells_cut":0,"cells_raw":0,"read":"whole","date_system":"1900"}

{"sheet":"Anlatım","index":0,"n_rows":127,"n_cols":13,"rows_kept":127,"cut":false,"hidden":false,"merged":[[103,0,104,16],[89,0,90,16],[0,0,2,16],[72,0,75,6],[72,8,75,16],[5,0,6,16],[63,0,63,6],[63,8,63,16],[84,0,85,16],[86,0,87,16],[26,0,27,16],[76,0,77,16],[82,0,83,16],[29,0,30,16],[80,0,81,16],[78,0,79,16],[124,0,125,5],[112,0,113,5],[114,0,115,5],[116,0,117,5],[118,0,119,5],[120,0,121,5],[106,0,107,16],[108,1,108,4],[109,1,109,4],[110,0,111,5],[122,0,123,5],[126,11,127,16],[108,12,108,15],[109,12,109,15],[110,11,111,16],[112,11,113,16],[114,11,115,16],[116,11,117,16],[118,11,119,16],[120,11,121,16],[122,11,123,16],[124,11,125,16],[31,0,34,3],[35,0,44,4],[45,0,62,2],[45,6,62,11],[3,0,4,16],[7,0,8,16],[9,0,10,16],[11,0,12,3],[24,0,25,16],[16,0,17,16],[13,0,14,3],[18,0,19,16],[20,0,21,16],[22,0,23,16],[11,9,12,12],[13,9,14,12],[97,0,98,16],[99,0,100,16],[101,0,102,16],[91,0,92,16],[93,0,94,16],[95,0,96,16]]}
["LÜTFEN BU SAYFANIN TAMAMINI DİKKATLİCE OKUYUNUZ"]
[]
[]
["Bu, \"Gelişim ve İzleme Formu Oluşturma Robotu\"muzun ücretli versiyonudur."]
[]
["Bu Robot Telefona, Tablete ve Apple cihazlara uygun olmayıp Bilgisayarda, Excel programında çalışmaktadır. Lütfen programımızı bilgisayarda kullanınız."]
[]
["Full versiyonu için gelişmeleri aşağıdaki linke tıklayarak Whatsapp grubumuzdan takip edebilirsiniz."]
[]
["Lütfen Programımızın Ücretli Versiyonunu Paylaşmayınız. Emeğimize Saygı Gösterdiğiniz İçin Teşekkür Ederiz."]
[]
["Plan ve Programlarımızı Görmek",null,null,null,null,null,null,null,null,"planim.com.tr"]
[]
["ve bize ulaşmak için:",null,null,null,null,null,null,null,null,"okul öncesi planları"]
[]
[]
["NOTLAR"]
[]
["Bu Robot 2024-2025 Maarif Programına göre hazırlanmıştır."]
[]
["Beceri Edinim Formları Dönemlere göre değişen zorlukta hazırlanmıştır (Her ay bir önceki aya göre daha zor kazanımlar otomatik olarak yazılır)"]
[]
["Programın sadece \"Ayarlamalar\"ve \"Beceri Edinim Formu\" sekmelerinde değişiklik yapabilirsiniz. (Eğer bir değişiklik yapmazsanız program tamamen otomatik olarak çalışacaktır)"]
[]
["Programın ayarlarının bozulmaması için sayfanın alt tarafındaki \"Ayarlamalar\" sekmesi ve \"Beceri Edinim Formu\"ndaki İsim Soyisim vb. Yeşil kutular hariç tüm sekmelerdeki yazılar kilitlenmiştir ve değiştirilemez."]
[]
["Beceri Edinim Formlarında sadece olumlu cümleler kullanılmıştır. \"Yapamaz\", \"Yapamıyor\", \"Beceremiyor\" ile biten hiçbir cümle kullanılmamıştır. Ayrıca Programdaki \"Yapar\", \"Söyler\" şeklindeki geniş zaman cümleleri \"Yapabiliyor\", \"Söyleyebiliyor\" şeklinde değiştirilmiştir."]
[]
[]
["NASIL ÇALIŞIR? (LÜTFEN TAMAMINI OKUYUNUZ)"]
[]
["1: Bu uyarı çıkarsa \"Düzenlemeyi Etkinleştir\" butonuna tıklayınız."]
[]
[]
[]
["2: Güvenlik Riski uyarısı çıkarsa Excel'i kapatıp 3. ve 4. maddeleri uygulayınız."]
[]
[]
[]
[]
[]
[]
[]
[]
[]
["3: İndirdiğiniz programımıza sağ tıklayıp özellikler'i seçiniz.",null,null,null,null,null,"4: açılan pencerede \"Engellemeyi Kaldır\"a tıklayıp sonra da \"Tamam\"a basınız. Programı tekrar açtığınızda 5. maddeden devam ediniz."]
[]
[]
[]
[]
[]
[]
[]
[]
[]
[]
[]
[]
[]
[]
[]
[]
[]
["Excel'in yeni versiyonlarında çıkan uyarı:",null,null,null,null,null,null,null,"Excel'in yeni versiyonunda çıkan uyarılar:"]
[]
[]
[]
[]
[]
[]
[]
[]
["1-A: Excel versiyonunuz yeniyse Programı ilk açtığınızda sayfanın üst tarafında \"Makrolar devre dışı bırakıldı\" uyarısı verirebilir                        \"İçeriği Etkinleştir\" butonuna basınız.",null,null,null,null,null,null,null,"1-B: Excel versiyonunuz eskiyse Programı ilk açtığınızda sayfanın üst tarafında \"Makrolar devre dışı bırakıldı\" uyarısı verirebilir önce \"Seçenekler\"e tıklayıp, açılan sayfada \"İçeriği Etkinleştir\"i seçerek \"Tamam\"a butonuna basınız."]
[]
[]
[]
["2: Sayfanın en altındaki \"Ayarlamalar\" sekmesini seçerek o sekmede bulunduğunuz ayı seçiniz."]
[]
["3: İhtiyacınıza göre sayfanın en altındaki \"Gelişim ve İzleme Formu\", \"Birinci Dönem Gelişim Raporu\" ya da \"Yıl Sonu Gelişim Raporu\" sekmesini seçip \"Çocuğun Adı Soyadı\", \"Öğretmenin Adı Soyadı\" ve \"Yaş Grubu\" kısımlarını doldurunuz. Çocuğun adını yazdığınız anda Robotumuz paragrafları çocuğun ismine göre kişiselleştirecektir."]
[]
["4: Robotun oluşturduğu içeriği okuyunuz. İçeriği beğenirseniz \"CTRL+P\" tuşlarıyla direkt olarak çıktı alabilir ya da içeriği beğenmezseniz Ayarlamalar sekmesindeki \"Başla\" tuşu ile sayfadaki tüm içeriği yenileyebilirsiniz."]
[]
["5:  Ayarlamalar sekmesindeki \"Başla\" tuşuna her basışınızda tüm sayfadaki içerik sil baştan yazılır. Her çocuk için ayar yapmadan yeni ve otomatik bir form hazırlamak için  Ayarlamalar sekmesindeki \"Başla\" tuşuna basmanız yeterlidir."]
[]
["6: İsterseniz Gelişim ve İzleme Formları için sayfanın alt tarafındaki\"Ayarlamalar\" sekmesinden hangi rakamda olduğunuz, ayın değerleri gibi ufak ayarlamalar yapabilirsiniz. (Ayarlama yapmazsanız otomatik seçilecektir)"]
[]
["Not: \"Beceri Edinim Formu\"ndaki \"Genel Değerlendirme ve Öneriler\" kısımlarını kendi cümlelerinizle doldurmalısınız."]
[]
[]
["NASIL KULLANIRIM (AYARLAMALAR ve DÜZENLEMELER YAPMA ile ÇIKTI ALMA)"]
[]
["1: Sayfanın alt tarafındaki sekmelerden Ayarlamalar'a tıklayıp açınız."]
[]
["2: Çocuğun Adı ve Çocuğun Soyadı kısımlarındaki yeşil kutuları boş bırakmayınız, kesin olarak yazınız"]
[]
["3: İşlediğiniz rakamı, rengi, şekli isterseniz seçebilirsiniz. (Seçmezseniz kavram sırasına uygun olarak robotumuz kendisi seçeer.)"]
[]
["5: Hangi Dönemi seçecekseniz \"Dönem Seçiniz\" kısmından seçiniz."]
[]
["6: BAŞLA'ya basınız. (BAŞLA'ya bastığınızda \"Beceri Edinim Formu\"nuz hazırlanacaktır. (Bilgisayarınızın hızına göre 2-30 saniye sürebilir.)"]
[]
["7: Öğretmen Adı, Yaş Grubu, Tarih gibi bilgileri düzenleyip gerekiyorsa öğrencinize göre gelişim alanlarında da düzenlemeleri de yaptıktan sonra"]
[]
["8: CTRL ve P tuşlarına birlikte basıarak çıktı alabilirsiniz."]
[]
[]
["E-Okul'a Gelişim Raporunu Kopyalamak İçin 2 Yöntem"]
[]
[null,"1. Yöntem",null,null,null,null,null,null,null,null,null,null,"2. Yöntem"]
[null,"Sürükle-Bırak Yöntemi",null,null,null,null,null,null,null,null,null,null,"Eklenti Yöntemi"]
["1: Bir adet word belgesi açıyoruz.",null,null,null,null,null,null,null,null,null,null,"1: Chrome ya da Opera Programını Açıyoruz"]
[]
["2: Excel'deki gelişim alanlarındaki paragrafları Word'e kopyalıyoruz",null,null,null,null,null,null,null,null,null,null,"2: Buraya tıklayıp Programın sayfasına giriyoruz"]
[]
[" Yeni paragraf için F9'a basınız",null,null,null,null,null,null,null,null,null,null,"3: Operaya Ekle / Chrome'a Ekle'ye basıyoruz"]
[]
["4: E-Okul'u açıyoruz.",null,null,null,null,null,null,null,null,null,null,"4: E-Okul'a girip Gelişim Raporu bölümünü açıyoruz"]
[]
["5: Hem E-Okul'u hem Word belgesini açıp yan yana yerleştiriyoruz.",null,null,null,null,null,null,null,null,null,null,"5: Gelişim Raporu açıkken Adres çubuğunun yanındaki yapboz işaretine tıklıyoruz"]
[]
["6: Hem E-Okul penceresini hem de Word belgesini küçültüp yan yana yerleştiriyoruz.",null,null,null,null,null,null,null,null,null,null,"6: Açılan sayfada Supreme Copy'in yanındaki pin işaretine basıyoruz"]
[]
["7: Word belgesinden gelişim alanına uygun bir paragrafı seçiyoruz.",null,null,null,null,null,null,null,null,null,null,"7: Adres çubuğunun yanında bir fare işareti gözükecek ona tıklıyoruz"]
[]
["8: Word belgesinden sürükleyerek E-Okul'un içine bırakıyoruz.",null,null,null,null,null,null,null,null,null,null,"8: Enable extension on this website butonuna basıyoruz"]
[]
[null,null,null,null,null,null,null,null,null,null,null,"9: Artık kopyala/yapıştır yapabilirsiniz"]

{"sheet":"Beceri Edinim Formu","index":1,"n_rows":24,"n_cols":11,"rows_kept":24,"cut":false,"hidden":false,"merged":[[17,1,17,10],[18,1,18,10],[19,1,19,10],[20,1,20,10],[15,1,15,10],[16,1,16,10],[9,1,9,10],[11,1,11,10],[12,1,12,10],[13,1,13,10],[14,1,14,10],[6,8,6,10],[7,1,7,2],[7,3,7,5],[7,6,7,7],[7,8,7,10],[23,1,23,10],[22,1,22,10],[1,1,1,10],[2,1,2,10],[4,1,4,2],[4,3,4,5],[4,6,4,7],[4,8,4,10],[10,1,10,10],[5,1,5,2],[5,3,5,5],[5,6,5,7],[5,8,5,10],[6,1,6,2],[6,3,6,5],[6,6,6,7]]}
[null,null,null,null,null,null,null,null,null,null,"EK-4"]
[null,"Beceri Edinim Formu"]
[null,"(Dönem Sonu)"]
[]
[null,"Çocuğun Adı:",null,"İsmi Yazın",null,null,"Çocuğun Soyadı:",null,"Soyismi Yazın"]
[null,"Öğretmen:",null,null,null,null,"Doğum Tarihi:"]
[null,"Okulun Adı:",null,null,null,null,"Cinsiyeti:"]
[null,"Rapor Tarihi:",null,null,null,null,"Okula Başlama:"]
[]
[null,"Alan Becerileri:"]
[null,"Gezi, gözlem çalışmalarında tehlikeli davranışlardan kaçınıyor. Milli ve Dini bayramların farkına varabiliyor. Günlük hayattaki bir problemi söyleyip problem hakkında sorular sorup araştırma yapabiliyor. Günlük yaşamda mevsim şartlarına uygun giyinmeye özen gösteriyor. Hareketli etkinliklerde vücudundaki değişiklikleri söyleyebiliyor. Hareketli etkinliklerin aralarında dinlenmesi gerektiğini biliyor."]
[null,"Sosyal - Duygusal Öğrenme Becerileri:"]
[null,"Bu bölüm Full versiyonda açılacaktır."]
[null,"Kavramsal Beceriler:"]
[null,"Bu bölüm Full versiyonda açılacaktır."]
[null,"Okuryazarlık Becerileri:"]
[null,"Bu bölüm Full versiyonda açılacaktır."]
[null,"Değerler:"]
[null,"Bu bölüm Full versiyonda açılacaktır."]
[null,"Eğilimler:"]
[null,"Bu bölüm Full versiyonda açılacaktır."]
[]
[null,"Genel Değerlendirme ve Öneriler"]
[null,"Genel Değerlendirme ve öneriler kısmına, çocukların bireysel ilgi duydukları merkezleri, oyuncakları, oyunları ve çocukların bireysel yetenekleri ile tatile ve geleceklerine dair güzel dileklerinizi yazabilirsiniz."]

{"sheet":"Ayarlamalar","index":2,"n_rows":40,"n_cols":27,"rows_kept":40,"cut":false,"hidden":false,"merged":[[0,0,0,2],[2,0,2,2],[6,0,6,2],[4,0,4,2],[22,0,22,6],[2,4,20,6],[24,0,24,6],[26,0,26,6],[23,0,23,7],[25,0,25,7],[9,0,20,2],[27,0,27,7],[29,0,29,7],[28,0,28,6],[30,0,30,7],[31,0,31,7],[34,6,34,7],[35,6,35,7],[36,6,36,7],[37,6,37,7],[33,6,33,7]]}
["Çocuğun Adı:",null,null,null,null,null,null,null,"(Dönem Sonu)"," ",null,null,null,null,null,null,null,null,null,null,null,null,null,null,1,"daire","kırmızı"]
[null,null,null,null,null,null,null,null,"(Sene Sonu)"," ",null,null,null,null,null,null,null,null,null,null,null,null,null,null,2,"üçgen","mavi"]
["İsmi Yazın",null,null," ","Eğer \"Başla\" düğmesi gözükmüyorsa        Robotunuzun indirme sayfasındaki videoları izleyerek videoda anlatılan aşamaları                                        (Engellemeyi Kaldırma ve Makrolara İzin Verme) gerçekleştiriniz.",null,null," ",null," ",null,null,null,null,null,null,null,null,null,null,null,null,null,null,3,"kare","sarı"]
[null,null,null,null,null,null,null,null,null," ",null,null,null,null,null,null,null,null,null,null,null,null,null,null,4,"dikdörtgen","turuncu"]
["Çocuğun Soyadı:",null,null,null,null,null,null,null,null," ",null,null,null,null,null,null,null,null,null,null,null,null,null,null,5,"elips","yeşil"]
[null,null,null,null,null,null,null,null,null," ",null,null,null,null,null,null,null,null,null,null,null,null,null,null,6,"küre","mor"]
["Soyismi Yazın",null,null,null,null,null,null,null,null," ",null,null,null,null,null,null,null,null,null,null,null,null,null,null,7,"küp","kahverengi"]
[null,null,null,null,null,null,null,null,null," ",null,null,null,null,null,null,null,null,null,null,null,null,null,null,8,"piramit","beyaz"]
[null,null,null,null,null,null,null,null,null," ",null,null,null,null,null,null,null,null,null,null,null,null,null,null,9,"silindir","pembe"]
["Çocuğun adını ve soyadını yeşil kutulara yazınız. Diğer bilgileri rapor oluşturulduktan sonra, rapor sayfasında dolduracaksınız.",null,null,null,null,null,null,null,null," ",null,null,null,null,null,null,null,null,null,null,null,null,null,null,"Otomatik","Otomatik","siyah"]
[null,null,null,null,null,null,null,null,null," ",null,null,null,null,null,null,null,null,null,null,null,null,null,null,null,null,"gri"]
[null,null,null,null,null,null,null,null,null," ",null,null,null,null,null,null,null,null,null,null,null,null,null,null,null,null,"Otomatik"]
[null,null,null,null,null,null,null," ",null," "]
[null,null,null,null,null,null,null," ",null," "]
[null,null,null,null,null,null,null," ",null," "]
[null,null,null,null,null,null,null," ",null," "]
[null,null,null,null,null,null,null," ",null," "]
[null,null,null,null,null,null,null," ",null," "]
[null,null,null,null,null,null,null," ",null," "]
[null,null,null,null,null,null,null," ",null," "]
[null,null,null,null,null,null,null," ",null,"  "]
[]
["Hangi Rakama kadar tanıyabiliyor? Yandaki yeşil kutuya tıklayıp seçiniz.",null,null,null,null,null,null,6]
[]
["Hangi rakama kadar yazabiliyor? (Rehber çizgiler yardımıyla) Yandaki yeşil kutuya tıklayıp seçiniz.",null,null,null,null,null,null,7]
[]
["Hangi şekle kadar öğrendiniz? Yandaki yeşil kutuya tıklayıp seçiniz. (Kitaplardaki sıraya göre)",null,null,null,null,null,null,"Otomatik"]
[]
["Hangi renge kadar öğrendiniz? Yandaki yeşil kutuya tıklayıp seçiniz. (Kitaplardaki sıraya göre)",null,null,null,null,null,null,"Otomatik"]
[]
["Yukarıdaki ayarlamaları yaptıktan sonra en son aşağıdaki yeşil kutudan"]
["Hangi aya ait Gelişim ve İzleme Formu ya da hangi döneme ait Gelişim Raporu hazırlanacağını seçip BAŞLA'ya basınız."]
[]
[null,null,null,null,"Mavi kutudan Dönem seçiniz:",null,"KULLANIM"]
[null,null,null,null,"(Dönem Sonu)",null,"1: İlk olarak yeşil kutulara çocuğun adını ve soyadını yazınız."]
[null,null,null,null,null,null,"2: Beceri Edinim Formları için Yeşil kutuları doldurunuz."]
[null,null,null,null,null,null,"3: Robotun otomatik olarak doldurmasını isterseniz \"Otomatik\" bırakınız."]
[null,null,null,null,null,null,"4: Ardından Başla'nın üzerinden Dönemi seçiniz."]
[null,null,null,null,"planim.com.tr"]
[null,null,null,null,"Okul Öncesi Planları"]

{"sheet":"DönemSonu","index":3,"n_rows":24,"n_cols":11,"rows_kept":24,"cut":false,"hidden":false,"merged":[[19,1,19,10],[20,1,20,10],[4,6,4,7],[4,8,4,10],[7,6,7,7],[7,8,7,10],[17,1,17,10],[9,1,9,10],[10,1,10,10],[11,1,11,10],[12,1,12,10],[6,8,6,10],[13,1,13,10],[14,1,14,10],[15,1,15,10],[16,1,16,10],[18,1,18,10],[23,1,23,10],[22,1,22,10],[1,1,1,10],[2,1,2,10],[4,1,4,2],[4,3,4,5],[7,1,7,2],[7,3,7,5],[5,1,5,2],[5,3,5,5],[5,6,5,7],[5,8,5,10],[6,1,6,2],[6,3,6,5],[6,6,6,7]]}
[null,null,null,null,null,null,null,null,null,null,"EK-4"]
[null,"Gelişim Raporu"]
[null,"(Dönem Sonu)"]
[]
[null,"Çocuğun Adı:",null,{"$f":"Ayarlamalar!A3","v":"İsmi Yazın"},null,null,"Çocuğun Soyadı:",null,{"$f":"Ayarlamalar!A7","v":"Soyismi Yazın"}]
[null,"Öğretmen:",null,null,null,null,"Doğum Tarihi:"]
[null,"Okulun Adı:",null,null,null,null,"Cinsiyeti:"]
[null,"Rapor Tarihi:",null,null,null,null,"Okula Başlama:"]
[]
[null,{"$f":"CONCATENATE(\"ALAN BECERİLERİ: \", LEN(B11), \" Karakter\")","v":"ALAN BECERİLERİ: 426 Karakter"}]
[null,{"$f":"CONCATENATE(K_BENZERSİZ(AlanBecerileri!A1:A21,1,\". \")&\".\",K_BENZERSİZ(AlanBecerileri!A22:A36,1,\". \")&\".\",K_BENZERSİZ(AlanBecerileri!A37:A52,1,\". \")&\".\",K_BENZERSİZ(AlanBecerileri!A53:A66,1,\". \")&\".\",K_BENZERSİZ(AlanBecerileri!A67:A84,1,\". \")&\".\",K_BENZERSİZ(AlanBecerileri!A85:A95,1,\". \")&\".\",K_BENZERSİZ(AlanBecerileri!A96:A104,1,\". \")&\".\")","v":"İsmi Yazın resimli hikaye, afiş, broşür ve dijital araçları inceleyip fikirlerini anlatabiliyor.Oluşturduğu çözüm yolunu deneyebiliyor.Basit düzeyde deney tasarlayabiliyor.Geçmişte kullanılan bazı aletlerin günümüzdeki hallerini bilebiliyor.Grup çalışmalarında grupla eş zamanlı hareket edebiliyor.İzlediği ya da dinlediği sanat eseri hakkındaki duygularını açıklayabiliyor.Öğrendiği şarkıları doğru telaffuzla söyleyebiliyor."}]
[null,{"$f":"CONCATENATE(\"SOSYAL-DUYGUSAL ÖĞRENME BECERİLERİ: \", LEN(B13), \" Karakter\")","v":"SOSYAL-DUYGUSAL ÖĞRENME BECERİLERİ: 37 Karakter"}]
[null,"Bu bölüm Full versiyonda açılacaktır."]
[null,{"$f":"CONCATENATE(\"KAVRAMSAL BECERİLER: \", LEN(B15), \" Karakter\")","v":"KAVRAMSAL BECERİLER: 37 Karakter"}]
[null,"Bu bölüm Full versiyonda açılacaktır."]
[null,{"$f":"CONCATENATE(\"OKURYAZARLIK BECERİLERİ: \", LEN(B17), \" Karakter\")","v":"OKURYAZARLIK BECERİLERİ: 37 Karakter"}]
[null,"Bu bölüm Full versiyonda açılacaktır."]
[null,{"$f":"CONCATENATE(\"DEĞERLER: \", LEN(B19), \" Karakter\")","v":"DEĞERLER: 37 Karakter"}]
[null,"Bu bölüm Full versiyonda açılacaktır."]
[null,{"$f":"CONCATENATE(\"EĞİLİMLER: \", LEN(B21), \" Karakter\")","v":"EĞİLİMLER: 37 Karakter"}]
[null,"Bu bölüm Full versiyonda açılacaktır."]
[]
[null,"Genel Değerlendirme ve Öneriler"]
[null,"Genel Değerlendirme ve öneriler kısmına, çocukların bireysel ilgi duydukları merkezleri, oyuncakları, oyunları ve çocukların bireysel yetenekleri ile tatile ve geleceklerine dair güzel dileklerinizi yazabilirsiniz."]

{"sheet":"SeneSonu","index":4,"n_rows":24,"n_cols":11,"rows_kept":24,"cut":false,"hidden":false,"merged":[[22,1,22,10],[23,1,23,10],[20,1,20,10],[12,1,12,10],[13,1,13,10],[14,1,14,10],[15,1,15,10],[16,1,16,10],[18,1,18,10],[17,1,17,10],[19,1,19,10],[7,6,7,7],[7,8,7,10],[9,1,9,10],[10,1,10,10],[11,1,11,10],[1,1,1,10],[2,1,2,10],[4,1,4,2],[4,3,4,5],[7,1,7,2],[7,3,7,5],[4,6,4,7],[4,8,4,10],[5,1,5,2],[5,3,5,5],[5,6,5,7],[5,8,5,10],[6,1,6,2],[6,3,6,5],[6,6,6,7],[6,8,6,10]]}
[null,null,null,null,null,null,null,null,null,null,"EK-4"]
[null,"Gelişim Raporu"]
[null,"(Sene Sonu)"]
[]
[null,"Çocuğun Adı:",null,{"$f":"Ayarlamalar!A3","v":"İsmi Yazın"},null,null,"Çocuğun Soyadı:",null,{"$f":"Ayarlamalar!A7","v":"Soyismi Yazın"}]
[null,"Öğretmen:",null,null,null,null,"Doğum Tarihi:"]
[null,"Okulun Adı:",null,null,null,null,"Cinsiyeti:"]
[null,"Rapor Tarihi:",null,null,null,null,"Okula Başlama:"]
[]
[null,{"$f":"CONCATENATE(\"ALAN BECERİLERİ: \", LEN(B11), \" Karakter\")","v":"ALAN BECERİLERİ: 37 Karakter"}]
[null,"Bu bölüm Full versiyonda açılacaktır."]
[null,{"$f":"CONCATENATE(\"SOSYAL-DUYGUSAL ÖĞRENME BECERİLERİ: \", LEN(B13), \" Karakter\")","v":"SOSYAL-DUYGUSAL ÖĞRENME BECERİLERİ: 37 Karakter"}]
[null,"Bu bölüm Full versiyonda açılacaktır."]
[null,{"$f":"CONCATENATE(\"KAVRAMSAL BECERİLERİ: \", LEN(B15), \" Karakter\")","v":"KAVRAMSAL BECERİLERİ: 37 Karakter"}]
[null,"Bu bölüm Full versiyonda açılacaktır."]
[null,{"$f":"CONCATENATE(\"OKURYAZARLIK BECERİLERİ: \", LEN(B17), \" Karakter\")","v":"OKURYAZARLIK BECERİLERİ: 37 Karakter"}]
[null,"Bu bölüm Full versiyonda açılacaktır."]
[null,{"$f":"CONCATENATE(\"DEĞERLER: \", LEN(B19), \" Karakter\")","v":"DEĞERLER: 37 Karakter"}]
[null,"Bu bölüm Full versiyonda açılacaktır."]
[null,{"$f":"CONCATENATE(\"EĞİLİMLER: \", LEN(B21), \" Karakter\")","v":{"$error":"#VALUE!"}}]
[null,{"$f":"K_BENZERSİZ([1]Egilimler!B1:B21,5,\". \")&\".\"","v":{"$error":"#VALUE!"}}]
[]
[null,"Genel Değerlendirme ve Öneriler"]
[null,"Genel Değerlendirme ve öneriler kısmına, çocukların bireysel ilgi duydukları merkezleri, oyuncakları, oyunları ve çocukların bireysel yetenekleri ile tatile ve geleceklerine dair güzel dileklerinizi yazabilirsiniz."]

{"sheet":"AlanBecerileri","index":5,"n_rows":117,"n_cols":2,"rows_kept":117,"cut":false,"hidden":true,"merged":[]}
[{"$f":"CONCATENATE(Ayarlamalar!$A$3,\" sohbet zamanında diğer çocukları aktif olarak dinleyip görüşlerini değerlendirebiliyor\")","v":"İsmi Yazın sohbet zamanında diğer çocukları aktif olarak dinleyip görüşlerini değerlendirebiliyor"},{"$f":"CONCATENATE(Ayarlamalar!$A$3,\" dinlediği ve izlediği görsel materyaller hakkında beğenme, onaylama ya da reddetme gibi uygun tepkiler verebiliyor\")","v":"İsmi Yazın dinlediği ve izlediği görsel materyaller hakkında beğenme, onaylama ya da reddetme gibi uygun tepkiler verebiliyor"}]
[{"$f":"CONCATENATE(Ayarlamalar!$A$3,\" konuşma sürecinde konuşacağı konuyu ve cümleleri planlayıp aktif bir şekilde konuşabiliyor\")","v":"İsmi Yazın konuşma sürecinde konuşacağı konuyu ve cümleleri planlayıp aktif bir şekilde konuşabiliyor"},{"$f":"CONCATENATE(Ayarlamalar!$A$3,\" görsel okuma süreci ve görsel okuma ortamı hakkındaki fikirlerini söyleyebiliyor\")","v":"İsmi Yazın görsel okuma süreci ve görsel okuma ortamı hakkındaki fikirlerini söyleyebiliyor"}]
[{"$f":"CONCATENATE(Ayarlamalar!$A$3,\" sınıfça seçilen bir hikayeyi sonuna kadar dinleyebiliyor\")","v":"İsmi Yazın sınıfça seçilen bir hikayeyi sonuna kadar dinleyebiliyor"},{"$f":"CONCATENATE(Ayarlamalar!$A$3,\" sohbet zamanında diğer çocukları aktif olarak dinleyip görüşlerini değerlendirebiliyor\")","v":"İsmi Yazın sohbet zamanında diğer çocukları aktif olarak dinleyip görüşlerini değerlendirebiliyor"}]
[{"$f":"CONCATENATE(Ayarlamalar!$A$3,\" görsel ve işitsel materyaller hakkında akılcı tahminlerde bulunabiliyor\")","v":"İsmi Yazın görsel ve işitsel materyaller hakkında akılcı tahminlerde bulunabiliyor"},{"$f":"CONCATENATE(Ayarlamalar!$A$3,\" konuşma sürecinde konuşacağı konuyu ve cümleleri planlayıp aktif bir şekilde konuşabiliyor\")","v":"İsmi Yazın konuşma sürecinde konuşacağı konuyu ve cümleleri planlayıp aktif bir şekilde konuşabiliyor"}]
[{"$f":"CONCATENATE(Ayarlamalar!$A$3,\" konuşma sürecinde nefesini ayarlayarak düzgün kullanbiliyor\")","v":"İsmi Yazın konuşma sürecinde nefesini ayarlayarak düzgün kullanbiliyor"},{"$f":"CONCATENATE(Ayarlamalar!$A$3,\" dinlemek istediği hikayeyi seçip, seçtiği hikayeyi sonuna kadar dinleyebiliyor\")","v":"İsmi Yazın dinlemek istediği hikayeyi seçip, seçtiği hikayeyi sonuna kadar dinleyebiliyor"}]
[{"$f":"CONCATENATE(Ayarlamalar!$A$3,\" şiir, hikaye, şarkı gibi görsel ve işitsel materyallerin parçalarını fark edebiliyor\")","v":"İsmi Yazın şiir, hikaye, şarkı gibi görsel ve işitsel materyallerin parçalarını fark edebiliyor"},{"$f":"CONCATENATE(Ayarlamalar!$A$3,\" görsel ve işitsel materyaller hakkında tahminde bulunup tahminiyle materyalin benzerlik ve farklılıkları karşılaştırabiliyor\")","v":"İsmi Yazın görsel ve işitsel materyaller hakkında tahminde bulunup tahminiyle materyalin benzerlik ve farklılıkları karşılaştırabiliyor"}]
[{"$f":"CONCATENATE(Ayarlamalar!$A$3,\" dinlediği ve izlediği görsel materyallere ilişkin duygu ve düşüncelerini özgürce anlatabiliyor\")","v":"İsmi Yazın dinlediği ve izlediği görsel materyallere ilişkin duygu ve düşüncelerini özgürce anlatabiliyor"},{"$f":"CONCATENATE(Ayarlamalar!$A$3,\" konuşma sürecinde nefesini ve konuşma hızını ayarlayarak düzgün kullanbiliyor\")","v":"İsmi Yazın konuşma sürecinde nefesini ve konuşma hızını ayarlayarak düzgün kullanbiliyor"}]
[{"$f":"CONCATENATE(Ayarlamalar!$A$3,\" resimli hikaye, afiş, broşür ve dijital araçları inceleyip fikirlerini anlatabiliyor\")","v":"İsmi Yazın resimli hikaye, afiş, broşür ve dijital araçları inceleyip fikirlerini anlatabiliyor"},{"$f":"CONCATENATE(Ayarlamalar!$A$3,\" parçalar halinde öğretilen şiir, hikaye, şarkı gibi görsel ve işitsel materyalleri öğrenebiliyor\")","v":"İsmi Yazın parçalar halinde öğretilen şiir, hikaye, şarkı gibi görsel ve işitsel materyalleri öğrenebiliyor"}]
[{"$f":"CONCATENATE(Ayarlamalar!$A$3,\" resimli hikaye ve dergilerdeki görsellere bakarak okuma öykünmesi yapabiliyor\")","v":"İsmi Yazın resimli hikaye ve dergilerdeki görsellere bakarak okuma öykünmesi yapabiliyor"},{"$f":"CONCATENATE(Ayarlamalar!$A$3,\" görsel materyallere ilişkin duygu ve düşüncelerini anlatıp başkalarının düşüncelerini dinleyebiliyor\")","v":"İsmi Yazın görsel materyallere ilişkin duygu ve düşüncelerini anlatıp başkalarının düşüncelerini dinleyebiliyor"}]
[{"$f":"CONCATENATE(Ayarlamalar!$A$3,\" görsel materyalleri karşılaştırarak benzerlik ve farklılıklarını ayırt edebiliyor\")","v":"İsmi Yazın görsel materyalleri karşılaştırarak benzerlik ve farklılıklarını ayırt edebiliyor"},{"$f":"CONCATENATE(Ayarlamalar!$A$3,\" resimli hikaye, afiş, broşür ve dijital araçları inceleyip akılcı bir şekilde fikirlerini açıklayabiliyor\")","v":"İsmi Yazın resimli hikaye, afiş, broşür ve dijital araçları inceleyip akılcı bir şekilde fikirlerini açıklayabiliyor"}]
[{"$f":"CONCATENATE(Ayarlamalar!$A$3,\" hikaye, afiş, broşür gibi görsel materyallerdeki olayların parçaları arasındaki ilişkiyi belirleyebiliyor\")","v":"İsmi Yazın hikaye, afiş, broşür gibi görsel materyallerdeki olayların parçaları arasındaki ilişkiyi belirleyebiliyor"},{"$f":"CONCATENATE(Ayarlamalar!$A$3,\" resimli hikaye ve dergilerdeki görsellerden yola çıkarak yazılarla ilgili tahminde bulunabiliyor\")","v":"İsmi Yazın resimli hikaye ve dergilerdeki görsellerden yola çıkarak yazılarla ilgili tahminde bulunabiliyor"}]
[{"$f":"CONCATENATE(Ayarlamalar!$A$3,\" sohbet zamanında konuşulan konu ile kendi bilgileri arasında ilişki kurup sohbete katılabiliyor\")","v":"İsmi Yazın sohbet zamanında konuşulan konu ile kendi bilgileri arasında ilişki kurup sohbete katılabiliyor"},{"$f":"CONCATENATE(Ayarlamalar!$A$3,\" görsel materyalleri karşılaştırarak benzerlik ve farklılıklarına dair çıkarımlarda bulunabiliyor\")","v":"İsmi Yazın görsel materyalleri karşılaştırarak benzerlik ve farklılıklarına dair çıkarımlarda bulunabiliyor"}]
[{"$f":"CONCATENATE(Ayarlamalar!$A$3,\" konuşurken örneklerden yararlanıp Türkçeyi düzgün kullanabiliyor\")","v":"İsmi Yazın konuşurken örneklerden yararlanıp Türkçeyi düzgün kullanabiliyor"},{"$f":"CONCATENATE(Ayarlamalar!$A$3,\" hikaye, afiş, broşür gibi görsel materyallerdeki olayların parçaları arasındaki ilişkiyi belirleyebiliyor\")","v":"İsmi Yazın hikaye, afiş, broşür gibi görsel materyallerdeki olayların parçaları arasındaki ilişkiyi belirleyebiliyor"}]
[{"$f":"CONCATENATE(Ayarlamalar!$A$3,\" konuşmalarını beden dili ile destekleyip cümlenin temel öğelerini konuşmasında kullanabiliyor\")","v":"İsmi Yazın konuşmalarını beden dili ile destekleyip cümlenin temel öğelerini konuşmasında kullanabiliyor"},{"$f":"CONCATENATE(Ayarlamalar!$A$3,\" sohbet zamanında konuşulan konu ile kendi bilgileri arasında ilişki kurup sohbete aktif bir şekilde katılabiliyor\")","v":"İsmi Yazın sohbet zamanında konuşulan konu ile kendi bilgileri arasında ilişki kurup sohbete aktif bir şekilde katılabiliyor"}]
[{"$f":"CONCATENATE(Ayarlamalar!$A$3,\" bir yazıdaki büyük harfleri bulup gösterebiliyor\")","v":"İsmi Yazın bir yazıdaki büyük harfleri bulup gösterebiliyor"},{"$f":"CONCATENATE(Ayarlamalar!$A$3,\" sohbet zamanında konuşulacak konuyu seçebiliyor ve konuya uygun sohbete katılabiliyor\")","v":"İsmi Yazın sohbet zamanında konuşulacak konuyu seçebiliyor ve konuya uygun sohbete katılabiliyor"}]
[{"$f":"CONCATENATE(Ayarlamalar!$A$3,\" erken okuryazarlık etkinliklerinde görsellerin arasındaki yazıyı fark edip gösterebiliyor\")","v":"İsmi Yazın erken okuryazarlık etkinliklerinde görsellerin arasındaki yazıyı fark edip gösterebiliyor"},{"$f":"CONCATENATE(Ayarlamalar!$A$3,\" konuşurken bezetme ve örnekler kullanıp Türkçeyi düzgün kullanabiliyor\")","v":"İsmi Yazın konuşurken bezetme ve örnekler kullanıp Türkçeyi düzgün kullanabiliyor"}]
[{"$f":"CONCATENATE(Ayarlamalar!$A$3,\" yazının yönünü ve yazıdaki noktalama işaretlerini fark edip gösterebiliyor\")","v":"İsmi Yazın yazının yönünü ve yazıdaki noktalama işaretlerini fark edip gösterebiliyor"},{"$f":"CONCATENATE(Ayarlamalar!$A$3,\" jest ve mimikleriyle konuşmalarını destekleyerek akıcı bir şekilde konuşabiliyor\")","v":"İsmi Yazın jest ve mimikleriyle konuşmalarını destekleyerek akıcı bir şekilde konuşabiliyor"}]
[{"$f":"CONCATENATE(Ayarlamalar!$A$3,\" cümlenin sözcüklerden oluştuğunu ve sözcükler arasında boşluklar olduğunu fark edebiliyor\")","v":"İsmi Yazın cümlenin sözcüklerden oluştuğunu ve sözcükler arasında boşluklar olduğunu fark edebiliyor"},{"$f":"CONCATENATE(Ayarlamalar!$A$3,\" erken okuryazarlık etkinliklerinde görsellerin arasındaki yazıyı fark edip gösterebiliyor\")","v":"İsmi Yazın erken okuryazarlık etkinliklerinde görsellerin arasındaki yazıyı fark edip gösterebiliyor"}]
[{"$f":"CONCATENATE(Ayarlamalar!$A$3,\" gösterilen ve söylenen sözcükler arasındaki uyaklı sözcükleri fark edip kafiyeli kelimeleri eşleştirebiliyor\")","v":"İsmi Yazın gösterilen ve söylenen sözcükler arasındaki uyaklı sözcükleri fark edip kafiyeli kelimeleri eşleştirebiliyor"},{"$f":"CONCATENATE(Ayarlamalar!$A$3,\" yazının yönünü ve yazıdaki noktalama işaretlerini fark edip gösterebiliyor\")","v":"İsmi Yazın yazının yönünü ve yazıdaki noktalama işaretlerini fark edip gösterebiliyor"}]
[{"$f":"CONCATENATE(Ayarlamalar!$A$3,\" kelimelerin harflerden oluştuğunu fark edebiliyor\")","v":"İsmi Yazın kelimelerin harflerden oluştuğunu fark edebiliyor"},{"$f":"CONCATENATE(Ayarlamalar!$A$3,\" cümlenin sözcüklerden oluştuğunu ve sözcükler arasında boşluklar olduğunu fark edebiliyor\")","v":"İsmi Yazın cümlenin sözcüklerden oluştuğunu ve sözcükler arasında boşluklar olduğunu fark edebiliyor"}]
[{"$f":"CONCATENATE(Ayarlamalar!$A$3,\" kelimelerin ilk seslerini fark edip aynı sesle başlayan kelimeler türetebiliyor\")","v":"İsmi Yazın kelimelerin ilk seslerini fark edip aynı sesle başlayan kelimeler türetebiliyor"},{"$f":"CONCATENATE(Ayarlamalar!$A$3,\" gösterilen ya da söylenen sözcükler arasındaki uyaklı sözcükleri fark edip kafiyeli kelimeler türetebiliyor\")","v":"İsmi Yazın gösterilen ya da söylenen sözcükler arasındaki uyaklı sözcükleri fark edip kafiyeli kelimeler türetebiliyor"}]
["Günlük hayattaki bir problemi söyleyip problem hakkında sorular sorup araştırma yapabiliyor",{"$f":"CONCATENATE(Ayarlamalar!$A$3,\" kelimelerin harflerden oluştuğunu fark edip kelimelerdeki büyük harfleri gösterebiliyor\")","v":"İsmi Yazın kelimelerin harflerden oluştuğunu fark edip kelimelerdeki büyük harfleri gösterebiliyor"}]
["Bir problem hakkında nerelerden ve nasıl veri toplayacağını tahmin edebiliyor",{"$f":"CONCATENATE(Ayarlamalar!$A$3,\" kelimelerin ilk ve son seslerini fark edip aynı sesle başlayan ve biten kelimeler türetebiliyor\")","v":"İsmi Yazın kelimelerin ilk ve son seslerini fark edip aynı sesle başlayan ve biten kelimeler türetebiliyor"}]
["Basit biir problem durumu hakkında araştırma yapıp kendi görüşlerini söyleyebiliyor",{"$f":"CONCATENATE(Ayarlamalar!$A$3,\" matematiksel sembolleri biliyor ve tanıyabiliyor\")","v":"İsmi Yazın matematiksel sembolleri biliyor ve tanıyabiliyor"}]
[{"$f":"IF(Ayarlamalar!$H$23=\"Otomatik\",\"Ritmik sayabilip öğrendiğimiz rakamları tanıyabiliyor\",CONCATENATE(\"Öğrendiğimiz \",Ayarlamalar!$H$23,\" rakamına kadar ritmik sayıp bu sayıları tanıyabiliyor\"))","v":"Öğrendiğimiz 6 rakamına kadar ritmik sayıp bu sayıları tanıyabiliyor"},"Toplama ve çıkarma işlemler için doğru sembolleri bilip kullanabiliyor"]
[{"$f":"IF(Ayarlamalar!$H$25=\"Otomatik\",\"Öğrendiğimiz rakamları yazabiliyor\",CONCATENATE(\"Öğrendiğimiz \",Ayarlamalar!$H$25,\" rakamına kadar olan rakamları biliyor ve yazabiliyor\"))","v":"Öğrendiğimiz 7 rakamına kadar olan rakamları biliyor ve yazabiliyor"},"Bir problem hakkında nerelerden ve nasıl veri toplayacağını biliyor"]
[{"$f":"IF(Ayarlamalar!$H$23=\"Otomatik\",\"1 ile 5 arasındaki nesne, varlık ve sembollerin sayısını söyleyebiliyor\",CONCATENATE(\"1 ile \",Ayarlamalar!$H$23,\" arasındaki nesne, varlık ve sembollerin sayısını söyleyebiliyor\"))","v":"1 ile 6 arasındaki nesne, varlık ve sembollerin sayısını söyleyebiliyor"},"Bir problem durumu hakkında araştırma yapıp elde ettiği verileri analiz edebiliyor"]
[{"$f":"CONCATENATE(Ayarlamalar!$A$3,\" bir bütünün parçalarını fark edip aralarındaki ilişkiyi belirleyebiliyor\")","v":"İsmi Yazın bir bütünün parçalarını fark edip aralarındaki ilişkiyi belirleyebiliyor"},{"$f":"IF(Ayarlamalar!$H$23=\"Otomatik\",\"Ritmik sayabilip tüm rakamları tanıyabiliyor\",CONCATENATE(Ayarlamalar!$H$23, \" rakamına kadar tüm rakamları ritmik sayıp bu sayıları tanıyabiliyor\"))","v":"6 rakamına kadar tüm rakamları ritmik sayıp bu sayıları tanıyabiliyor"}]
["Matematiksel olayları farklı materyal ve sembollerle ifade edebilyior",{"$f":"IF(Ayarlamalar!$H$25=\"Otomatik\",\"Tüm rakamları yazabiliyor\",CONCATENATE(Ayarlamalar!$H$25, \" rakamına kadar öğrendiğimiz tüm rakamları biliyor ve yazabiliyor\"))","v":"7 rakamına kadar öğrendiğimiz tüm rakamları biliyor ve yazabiliyor"}]
[{"$f":"IF(Ayarlamalar!$H$27=\"Otomatik\",\"Bu dönem öğrendiğimiz şekilleri tanıyabiliyor\",CONCATENATE(\"Bu dönem öğrendiğimiz \",Ayarlamalar!$H$27,\" şekline kadar olan şekilleri tanıyabiliyor\"))","v":"Bu dönem öğrendiğimiz şekilleri tanıyabiliyor"},{"$f":"IF(Ayarlamalar!$H$23=\"Otomatik\",\"1 ile 10 arasındaki nesne, varlık ve sembollerin sayısını söyleyebiliyor\",CONCATENATE(\"1 ile \",Ayarlamalar!$H$23,\" arasındaki nesne, varlık ve sembollerin sayısını söyleyebiliyor\"))","v":"1 ile 6 arasındaki nesne, varlık ve sembollerin sayısını söyleyebiliyor"}]
[{"$f":"IF(Ayarlamalar!$H$29=\"Otomatik\",\"Bu dönemde öğrendiğimiz tüm renkleri biliyor\",CONCATENATE(\"Bu dönem öğrendiğimiz \",Ayarlamalar!$H$29,\" rengine kadar olan renkleri biliyor\"))","v":"Bu dönemde öğrendiğimiz tüm renkleri biliyor"},{"$f":"CONCATENATE(Ayarlamalar!$A$3,\" bir bütünün parçalarını fark edip aralarındaki birden fazla ilişkiyi belirleyebiliyor\")","v":"İsmi Yazın bir bütünün parçalarını fark edip aralarındaki birden fazla ilişkiyi belirleyebiliyor"}]
["Matematiksel problemlerdeki eksik ve fazla parçaları tanımlayabiliyor","Matematiksel problemleri farklı materyal ve sembollerle ifade edebilyior"]
["Nesneleri maksimum dört kişilik bir arkadaş grubunda birer birer paylaştırabiliyor",{"$f":"IF(Ayarlamalar!$H$27=\"Otomatik\",\"Öğrendiğimiz şekilleri tanıyabiliyor\",CONCATENATE(\"Bu dönem öğrendiğimiz \",Ayarlamalar!$H$27,\" şekline kadar olan şekilleri tanıyabiliyor\"))","v":"Öğrendiğimiz şekilleri tanıyabiliyor"}]
["Matematiksel problemleri anlayıp yorumlayabiliyor",{"$f":"IF(Ayarlamalar!$H$27=\"Otomatik\",\"Bu dönem öğrendiğimiz şekilleri tanıyabiliyor\",CONCATENATE(\"Bu dönem öğrendiğimiz \",Ayarlamalar!$H$27,\" şekline kadar olan şekilleri tanıyabiliyor\"))","v":"Bu dönem öğrendiğimiz şekilleri tanıyabiliyor"}]
["Nesnelerle oluşturulmuş matematiksel bir problemi çözmek için strateji oluşturabiliyor",{"$f":"IF(Ayarlamalar!$H$29=\"Otomatik\",\"Bu dönemde öğrendiğimiz tüm renkleri biliyor\",CONCATENATE(\"Bu dönem öğrendiğimiz \",Ayarlamalar!$H$29,\" rengine kadar olan renkleri biliyor\"))","v":"Bu dönemde öğrendiğimiz tüm renkleri biliyor"}]
["Oluşturduğu çözüm yolunu deneyebiliyor","Matematiksel problemlerdeki eksik, fazla ya da uyumsuz parçaları tanımlayabiliyor"]
["Duyuları aracılığıyla gözlemler yapabiliyor","Nesneleri ve oyuncakları arkadaşları arasında birer birer paylaştırabiliyor"]
["Yapılan deneylerdeki değişiklikleri gözlemleyebiliyor","Matematiksel problemleri kendi cümleleriyle ifade edip yorumlayabiliyor"]
["Materyalleri katı, sıvı, gaz olarak tanıyıp ayırabiliyor","Nesnelerle ve sembollerle oluşturulmuş  bir problemi çözmek için strateji oluşturabiliyor"]
["Malzemeleri geri dönüşüm amacıyla gruplandırabiliyor","Matematiksel bir problemi çözmek için oluşturduğu çözüm yolunu deneyebiliyor"]
["Canlıların yaşam döngülerini fark edebiliyor","Problem çözerken ortaya çıkan sonucu değerlendirip gerekirse yeni bir çözüm yolu deneyebiliyor"]
["Canlıların temel özelliklerini görmek için gözlemler yapabiliyor","Duyuları aracılığıyla gözlemler yapabiliyor"]
["Beslenmenin tüm canlılar için önemli olduğunu biliyor","Yapılan deneylerdeki değişiklikleri gözlemleyebiliyor"]
["Çevre sorunlarının farkına varıp bu sorunların gelecek için tehlikesini fark edebiliyor","Materyalleri katı, sıvı, gaz olarak tanıyıp ayırabiliyor"]
["Bitkilerin gelişimlerini takip edip tekrarlı ölçümler yapabiliyor","Malzemeleri geri dönüşüm amacıyla gruplandırabiliyor"]
["Canlıların sağlıklı kalmak için yapmaları gerekenleri bilip kendi sağlığına dikkat edebiliyor","Canlıların yaşam döngülerini fark edebiliyor"]
["Çeşitli nesneleri uygun ölçme araçlarıyla ölçebiliyor","Canlıların temel özelliklerini görmek için gözlemler yapabiliyor"]
["Canlı ve cansız varlıklarını gözlemleyip gözlemlerini ifade edebiliyor","Beslenmenin tüm canlılar için önemli olduğunu biliyor"]
["Basit düzeyde deney tasarlayabiliyor","Çevre sorunlarının farkına varıp bu sorunların gelecek için tehlikesini fark edebiliyor"]
["Yakın çevresindeki sorunlara yönelik hayal gücüne dayalı çözümler önerebiliyor","Bitkilerin gelişimlerini takip edip tekrarlı ölçümler yapabiliyor"]
["Günlük hayatta karşılaştığı problemleri çözmek için veri toplayıp bu verileri kullanabiliyor","Canlıların sağlıklı kalmak için yapmaları gerekenleri bilip kendi sağlığına dikkat edebiliyor"]
["Sürdürülebilir hayat için yaşından beklenen düzeyde öneriler sunabiliyor","Çeşitli nesneleri uygun ölçme araçlarıyla ölçebiliyor"]
["Kendisine verilen kroki üzerindeki rotayı takip edebiliyor","Canlı ve cansız varlıklarını gözlemleyip gözlemlerini ifade edebiliyor"]
["Nesneler kullanarak nesne grafiği oluşturabiliyor","Basit düzeyde deney tasarlayabiliyor"]
["Ürünleri almak için para gerektiğini biliyor","Yakın çevresindeki sorunlara yönelik hayal gücüne dayalı çözümler önerebiliyor"]
["Gece, gündüz ve gün gibi kavramları biliyor","Günlük hayatta karşılaştığı problemleri çözmek için veri toplayıp bu verileri kullanabiliyor"]
["Milli ve Dini bayramların farkına varabiliyor","Sürdürülebilir hayat için yaşından beklenen düzeyde öneriler sunabiliyor"]
["Gün akışında yaşanan eylem ve etkinlikleri sıralayabiliyor","Kendisine verilen kroki üzerindeki rotayı takip edebiliyor"]
["Geçmişte kullanılan bazı aletlerin günümüzdeki hallerini bilebiliyor","Harita, pusula gibi materyalleri ve kullanım amaçlarını biliyor"]
["Merak ettiği konulara yönelik incelemeler yapıp sorular sorabiliyor","Bir nesnenin yerini göstermek için kroki hazırlayabiliyor"]
["İncelediği, izlediği ve dinlediği ürünleri bir başkasına açıklayabiliyor","Nesne ve görseller kullanarak nesne grafiği oluşturabiliyor"]
["Günlük hayatta karşılaştığı nesne ya da durumların özelliklerini açıklayabiliyor","Ürünlerin bir fiyatı olduğunu ve ürünleri almak için para gerektiğini biliyor"]
["Dahil olduğu gruptaki sohbete katılabiliyor","Gece, gündüz, dün, bugün, yarın gibi kavramları biliyor"]
["Dağ, tepe, deniz gibi coğrafi terimlerden bazılarını bilebiliyor","Milli ve Dini bayramların farkına varabiliyor"]
["Hava durumu ile ilgili tahminde bulunup hava olayları hakkında sorular sorabiliyor","Gün akışında yaşanan eylem ve etkinlikleri oluş sırasına göre sıralayabiliyor"]
["Gezi, gözlem çalışmalarında tehlikeli davranışlardan kaçınıyor","Geçmişte kullanılan bazı aletlerin tarihteki değişimlerini ve günümüzdeki hallerini bilebiliyor"]
["Etkinliğin durumuna uygun denge hareketleri yapabiliyor","Merak ettiği konulara yönelik çeşitli gözlemler, incelemeler ve deneyler yapıp sorular sorabiliyor"]
["Nesne kontrolü gerektiren itme, çekme, kavrama gibi hareketleri yapabiliyor","İncelediği, izlediği ve dinlediği olay ve ürünleri kendi cümleleriyle açıklayabiliyor"]
["Farklı büyüklükteki nesneleri kavrayabiliyor","Günlük hayatta karşılaştığı nesne, mekan ya da durumların özelliklerini açıklayabiliyor"]
["Bedeninin bölümlerini bilip adlarını söyleyebiliyor","Dahil olduğu gruptaki sohbete katılabiliyor"]
["Özel bölgelerini bilip iyi ve kötü dokunuşların farkını anlayabiliyor","Dağ, tepe, deniz, okyanus gibi coğrafi terimlerden bazılarını bilebiliyor"]
["Başkalarının ve kendinin özel alanını biliyor","Hava durumu ile ilgili tahminde bulunup merak ettiği hava olayları hakkında sorular sorabiliyor"]
["Eşli olarak oyun, dans ve hareket ektinlikleri yapabiliyor","Gezi, gözlem çalışmalarında tehlikeli davranışlardan kaçınıyor"]
["Grup çalışmalarında grupla eş zamanlı hareket edebiliyor","Etkinliğin ya da oyunun kurallarına uygun denge hareketleri yapabiliyor"]
["Sağlıklı ve sağlıksız yiyecekleri biliyor","Nesne kontrolü gerektiren karmaşık hareketler yapabiliyor"]
["Sağlıklı beslenmeye dikkat etmeye çalışıyor","Farklı büyüklükteki nesne ve yoğurma malzemelerini kavrayıp şekillendirebiliyor"]
["Günlük olarak yeterli miktarda sıvı tüketmeye gayret ediyor","Bedeninin bölümlerini bilip, gösterip işlevleri hakkında kısa bilgiler verebiliyor"]
["Hareketli etkinliklerde vücudundaki değişiklikleri söyleyebiliyor","Özel bölgelerini bilip iyi ve kötü dokunuşların farkını anlayabiliyor"]
["Hareketli etkinliklerin aralarında dinlenmesi gerektiğini biliyor","Başkalarının ve kendinin özel alanını, kişisel alanını ve genel alanını biliyor"]
["Günlük yaşamda mevsim şartlarına uygun giyinmeye özen gösteriyor","Eşli oyun, dans ve hareket ektinliklerine katılıp hareketleri düzgün bir şekilde yapabiliyor"]
["Sınıfın, okul bahçesinin ve bulunduğu çevrenin temizliğine özen gösteriyor","Grup çalışmalarında grupla hareketleri grupla eş zamanlı olarak yapabiliyor"]
["Hareketli oyunların kurallarını fark edip basit kurallara uyabiliyor","Sağlıklı ve sağlıksız yiyecekleri bilip sağlığı hakkında yorumlar yapabiliyor"]
["Hareketli oyunlarda basit taktikler oluşturup uygulayabiliyor","Sağlıklı beslenmeye özen gösterip sağlıksız yiyeceklerin zararlarını anlatabiliyor"]
["Oyunlarda lider rolündeki çocuğu izleyip gerektiğinde lider olabiliyor","Günlük olarak yeterli miktarda sıvı tüketmeye gayret ediyor"]
["Temel sanat materyallerini amacına uygun olarak seçip kullanabiliyor","Hareketli etkinliklerde vücudunda gerçekleşen değişiklikleri söyleyebiliyor"]
["Sınıfta yapılan drama etkinliklerinde dramaya uygun materyalleri kullanabiliyor","Etkinliklerde yorulduğunda dinlenmeye ihtiyacı olduğunu biliyor"]
["Sanat eserine odaklanıp inceleyebiliyor","Günlük yaşamda mevsim şartlarına uygun giyinmesi gerektiğini bilip buna özen gösteriyor"]
["Sanat eseri hakkında merak ettiği soruları sorabiliyor","Sınıfın, okul bahçesinin ve bulunduğu çevrenin temizliğine özen gösteriyor"]
["Drama etkinliklerinde dramanın içeriği ve konusu hakkında sorular sorabiliyor","Hareketli oyunların nispeten zor kurallarını fark edip kurallara uyabiliyor"]
["İzlediği ya da dinlediği sanat eseri hakkındaki duygularını açıklayabiliyor","Hareketli oyunlarda çeşitli taktikler oluşturup uygulayabiliyor"]
["Gösterilen bir sanat eserinin nasıl yapıldığına dair tahminde bulunabiliyor","Hareketli oyunlarda oluşturduğu taktikler işe yaramazsa başka taktikler deneyebiliyor"]
["Dijital ortamda gösterilen sanat eserleri hakkında fikirlerini söyleyebiliyor","Oyunlarda lider rolündeki çocuğu izleyip gerektiğinde lider olabiliyor"]
["Yapmak istediği sanat etkinliğinin türünü ve gerekli malzemeleri seçebiliyor","Sanat eserinde gördüklerini anlamlandırıp açıklayabiliyor"]
["Yaratıcılığını geliştirecek bireysel ya da grup etkinliklerinde aktif rol alıyor","Çeşitli sanat materyallerini amacına uygun olarak seçip kullanabiliyor"]
["Sanat etkinliklerinde çeşitli ürünler oluşturabiliyor","Sınıfta yapılan drama etkinliklerinde dramaya uygun materyalleri kullanabiliyor"]
["Dinlediği müziklerdeki ses, ritim ve tempo farklılıklarını fark edebiliyor","Sanat eserine odaklanıp sanat eserinin özelliklerini inceleyebiliyor"]
["Öğrendiği şarkıları doğru telaffuzla söyleyebiliyor","Sanat eseri hakkında merak ettiği soruları sorup, sorulan sorulara cevap verebiliyor"]
["Birkaç seçenek arasından dinlemek istediği şarkıyı seçebiliyor","Drama etkinliklerinde dramanın içeriği ve konusu hakkında sorular sorabiliyor"]
["Öğrendiği şarkıyı bireysel ya da sınıfla birlikte söyleyebiliyor","Drama etkinliklerinden sonra, yapılan drama hakkında açıklamalar yapabiliyor"]
["Duyduğu sesin kaynağını ve yönünü söyleyebiliyor","İzlediği ya da dinlediği sanat eseri hakkındaki duygu ve düşüncelerini açıklayabiliyor"]
["Öğrendiği şarkılara Orff aletleriyle eşlik edebiliyor","Üzerine açıklama yapılan sanat eserini yapan sanatçı hakkında fikirlerini söyleyebiliyor"]
["Doğadan ya da çevreden gelen sesleri taklit edebiliyor","Gösterilen bir sanat eserinin nasıl yapıldığına dair akılcı tahminlerde bulunabiliyor"]
["Çalan müziğe uygun bir şekilde dans edebiliyor","Dijital ortamda gösterilen sanat eserleri hakkında fikirlerini söyleyebiliyor"]
["Bildiği şarkılardan yola çıkarak doğaçlama şarkılar üretebiliyor","Yapmak istediği sanat etkinliğinin türünü ve gerekli malzemeleri seçebiliyor"]
[null,"Yaratıcılığını geliştirecek bireysel ya da grup etkinliklerinde aktif rol alıyor"]
[null,"Sanat etkinliklerinde yaratıcı ürünler oluşturabiliyor"]
[null,"Dinlediği ya da söylediği şarkılar hakkındaki duygularını belirtebiliyor"]
[null,"Dinlediği müziklerdeki ses, ritim ve tempo farklılıklarını fark edebiliyor"]
[null,"Öğrendiği şarkıları doğru telaffuzla söyleyebiliyor"]
[null,"Birkaç seçenek arasından dinlemek istediği şarkıyı seçebiliyor"]
[null,"Öğrendiği şarkıyı bireysel ya da sınıfla birlikte söyleyebiliyor"]
[null,"Duyduğu sesin kaynağını ve yönünü söyleyebiliyor"]
[null,"Öğrendiği şarkılara Orff aletleriyle eşlik edebiliyor"]
[null,"Çalan müziğe uygun bir şekilde dans edebiliyor"]
[null,"Bedeninin bölümleriyle müziğe uygun beden perküsyonu yapabiliyor"]
[null,"Beden perküsyonu ile planlı ya da doğaçlama ritim üretebiliyor"]
[null,"Önceden yaptığı dramalardan yola çıkarak doğaçlama drama oluşturup sunabiliyor"]